bitfinex/quotes_ETHUSD_20250430
["timestamp","ask_amount","ask_price","bid_price","bid_amount"]
[1745999530689,6.04383916,1795.2,1795.1,7.2920746]
[1745999531591,6.04383916,1795.2,1795.1,1.72135431]
[1745999532101,6.55908836,1795.2,1795.1,1.72135431]
[1745999532404,6.55908836,1795.2,1795.1,7.2920746]
[1745999533074,12.12967609,1795.2,1795.0,4.6156]
[1745999533276,0.5152492,1795.1,1795.0,4.6156]
[1745999533449,0.5152492,1795.1,1795.0,1.6156]
[1745999534187,0.8244055,1795.1,1795.0,1.6156]
[1745999534589,6.55908836,1795.1,1795.0,1.6156]
[1745999534755,7.77205597,1795.1,1795.0,1.6156]
[1745999535193,13.85803439,1795.1,1795.0,1.6156]
[1745999535357,5.57113246,1795.0,1794.7,9.69735431]
[1745999535556,5.73468286,1794.9,1794.7,9.69735431]
[1745999536257,11.30615312,1794.9,1794.7,7.976]
[1745999536457,5.73468286,1794.9,1794.7,4.976]
[1745999536657,5.73468286,1794.9,1794.7,10.54796188]
[1745999537677,5.73468286,1794.9,1794.7,10.54796188]
[1745999538405,5.73468286,1794.9,1794.8,7.84300574]
[1745999538994,5.73468286,1794.9,1794.8,10.84300574]
[1745999539201,5.73468286,1794.9,1794.8,11.62950574]
[1745999541299,5.73468286,1794.9,1794.8,13.35086005]
[1745999542111,6.36157943,1795.5,1794.8,13.35086005]
[1745999542112,5.73468286,1795.3,1795.2,5.57040998]
[1745999542413,5.73468286,1795.3,1795.2,16.64096429]
[1745999543005,6.51558286,1795.3,1795.2,4.976]
[1745999543208,13.29422047,1795.3,1795.2,4.976]
[1745999543593,7.72412077,1795.3,1795.2,4.976]
[1745999543792,7.0309117,1795.3,1795.2,4.976]
[1745999544115,7.34011019,1795.3,1795.2,4.976]
[1745999545203,6.55921019,1795.3,1795.2,7.24735431]
[1745999545407,6.2500117,1795.3,1795.2,7.24735431]
[1745999545598,6.2500117,1795.3,1795.2,12.81776429]
[1745999546794,5.73468286,1795.3,1795.2,12.81776429]
[1745999547220,5.73468286,1795.3,1795.2,14.6565913]
[1745999547924,5.73468286,1795.3,1795.2,17.6565913]
[1745999548882,5.73468286,1795.3,1795.2,18.4846913]
[1745999551620,5.73468286,1795.3,1795.2,19.94895299]
[1745999552096,5.73468286,1795.9,1795.7,5.56881931]
[1745999552298,5.73468286,1795.9,1795.7,10.54381931]
[1745999552497,5.73468286,1795.9,1795.7,12.21011543]
[1745999552915,5.73468286,1795.9,1795.8,0.55]
[1745999553729,5.73468286,1795.9,1795.8,6.11854883]
[1745999553928,3.69438539,1796.0,1795.9,6.11823876]
[1745999554087,5.73468287,1796.4,1796.3,6.11699883]
[1745999554288,5.73468287,1796.4,1796.3,11.04999883]
[1745999556596,5.73468287,1796.4,1796.3,5.483]
[1745999557425,5.73468287,1796.4,1796.3,11.04999883]
[1745999557731,5.73468287,1796.4,1796.3,17.23561483]
[1745999557915,5.73468287,1796.4,1796.3,19.59289598]
[1745999559825,5.73468287,1796.4,1796.3,10.84028115]
[1745999560030,5.83872042,1796.4,1796.3,14.04999883]
[1745999560331,5.83872042,1796.4,1796.3,17.23561483]
[1745999560627,5.73468287,1796.4,1796.3,17.23561483]
[1745999564125,5.73468287,1796.4,1796.3,18.02181483]
[1745999564795,5.73468287,1796.4,1796.3,18.44398697]
[1745999565025,5.73468287,1796.4,1796.3,20.84511496]
[1745999566863,1e-08,1796.4,1796.3,20.84511496]
[1745999571649,1e-08,1796.4,1796.3,19.37802767]
[1745999572932,1e-08,1796.4,1796.3,17.65949896]
[1745999573132,1e-08,1796.4,1796.3,16.87329896]
[1745999574941,1e-08,1796.4,1796.3,17.70159896]
[1745999582881,0.65088889,1796.7,1796.6,9.90586924]
[1745999583074,0.65088889,1796.7,1796.6,13.1716099]
[1745999583742,0.65088889,1796.7,1796.6,12.3818099]
[1745999585872,0.75954591,1796.7,1796.6,12.3818099]
[1745999586273,0.65088889,1796.7,1796.6,12.3818099]
[1745999586477,0.75954591,1796.7,1796.6,12.3818099]
[1745999586979,0.65088889,1796.7,1796.6,6.81574066]
[1745999587182,0.65088889,1796.7,1796.6,7.859]
[1745999587345,0.75954591,1796.7,1796.6,7.859]
[1745999587880,1.58954591,1796.7,1796.6,8.409]
[1745999588184,2.10615294,1796.7,1796.6,5.409]
[1745999588478,2.41612596,1796.7,1796.6,5.409]
[1745999589078,2.41612596,1796.7,1796.6,4.859]
[1745999589455,2.41612596,1796.7,1796.6,5.409]
[1745999589661,2.41612596,1796.7,1796.6,6.50653786]
[1745999590488,2.41612596,1796.7,1796.6,5.409]
[1745999591882,2.41612596,1796.7,1796.6,4.859]
[1745999592185,7.9818854,1796.7,1796.6,4.859]
[1745999592753,8.49841436,1796.7,1796.6,4.859]
[1745999593169,14.23309722,1796.7,1796.6,4.859]
[1745999597494,8.66733778,1796.7,1796.6,5.409]
[1745999597990,13.60791124,1796.7,1796.6,4.859]
[1745999598206,15.52525392,1796.7,1796.6,4.859]
[1745999599764,13.60791124,1796.7,1796.6,4.859]
[1745999599999,8.0421518,1796.7,1796.6,4.859]
[1745999600357,13.60791124,1796.7,1796.6,4.859]
[1745999602206,14.12386588,1796.7,1796.6,4.859]
[1745999603865,7.72810644,1796.7,1796.0,6.06593869]
[1745999604070,6.3498866,1796.4,1796.3,4.859]
[1745999604289,1.29960703,1796.4,1796.3,4.859]
[1745999604504,1.60958005,1796.4,1796.3,4.859]
[1745999604710,0.82658005,1796.4,1796.3,5.409]
[1745999604876,0.30997302,1796.4,1796.3,5.409]
[1745999605223,0.30997302,1796.4,1796.3,4.859]
[1745999605382,6.38038893,1796.4,1796.3,4.859]
[1745999606217,6.38557175,1796.7,1796.5,5.56637907]
[1745999606378,3.77119149,1797.2,1797.1,0.55]
[1745999606772,3.77119149,1797.2,1797.0,5.6589]
[1745999607088,0.7633,1797.1,1797.0,4.86]
[1745999609013,1.07274702,1797.1,1797.0,4.86]
[1745999609218,0.7556,1797.0,1796.5,5.56622987]
[1745999609519,3.77119149,1796.9,1796.6,5.409]
[1745999609682,3.77119149,1796.9,1796.6,10.97503889]
[1745999610813,3.77119149,1796.9,1796.6,10.97489103]
[1745999611013,3.77119149,1796.9,1796.6,5.409]
[1745999611312,3.77119149,1796.9,1796.6,12.07242229]
[1745999611812,3.77119149,1796.9,1796.6,17.63832766]
[1745999612027,3.77119149,1796.9,1796.6,12.07242229]
[1745999612191,3.77119149,1796.9,1796.6,12.07241384]
[1745999612390,3.77119149,1796.9,1796.6,12.07234162]
[1745999612590,3.77119149,1796.9,1796.8,0.55]
[1745999618111,3.77119149,1796.9,1796.8,6.11544968]
[1745999618822,3.77119149,1796.9,1796.8,0.55]
[1745999621521,3.77119149,1796.9,1796.7,0.55]
[1745999623624,3.77119149,1797.1,1796.7,3.73244474]
[1745999623927,3.77119149,1797.1,1796.9,0.55]
[1745999626432,3.77119149,1797.1,1797.0,5.6834]
[1745999627238,3.77119149,1797.1,1796.9,0.55]
[1745999627441,0.7664,1797.0,1796.7,4.891]
[1745999627639,3.77119149,1797.1,1796.7,4.891]
[1745999627809,3.77119149,1797.1,1796.9,0.8041]
[1745999628010,3.77119149,1797.1,1797.0,0.55]
[1745999629539,3.77119149,1797.1,1797.0,2.26763017]
[1745999632928,3.87718091,1797.1,1797.0,2.26763017]
[1745999634256,3.77119149,1797.4,1797.0,2.26763017]
[1745999634553,0.11196902,1797.3,1797.1,4.94563754]
[1745999634849,0.11196902,1797.3,1797.2,0.49456375]
[1745999637142,0.7862,1797.2,1796.8,5.7946459]
[1745999637350,0.7862,1797.2,1796.7,18.378]
[1745999637656,3.88332205,1797.1,1796.7,23.268]
[1745999637865,3.77119149,1797.1,1796.8,3.55]
[1745999638226,3.77119149,1797.1,1796.8,4.3352]
[1745999638418,3.77119149,1797.1,1797.0,0.55]
[1745999641155,3.77119149,1797.1,1797.0,1.3482]
[1745999641331,3.77119149,1797.1,1797.0,1.65478302]
[1745999641520,0.7939,1797.5,1797.0,1.65478302]
[1745999641860,0.11116125,1797.4,1797.2,2.26763017]
[1745999642273,4.58979149,1797.7,1797.2,2.26763017]
[1745999642457,0.11116125,1797.3,1797.2,2.26763017]
[1745999642656,0.51635035,1797.6,1797.2,2.98339319]
[1745999642856,0.11116125,1797.3,1797.2,1.26576302]
[1745999643058,0.51635035,1797.6,1797.2,1.26576302]
[1745999643570,0.11326133,1797.5,1797.2,1.26576302]
[1745999643784,4.1942041,1797.5,1797.2,5.98339319]
[1745999643982,4.1942041,1797.5,1797.4,0.55]
[1745999644272,4.1942041,1797.5,1797.4,3.03943017]
[1745999644641,3.88445282,1797.5,1797.4,3.03943017]
[1745999647972,0.11326133,1797.5,1797.4,3.03943017]
[1745999648374,0.7505,1797.9,1797.4,3.03943017]
[1745999648671,4.52169149,1797.9,1797.6,2.26763017]
[1745999648859,0.10645162,1797.8,1797.6,2.26763017]
[1745999649364,0.10685555,1797.7,1797.6,0.55]
[1745999649702,4.52169149,1797.9,1797.6,0.55]
[1745999650005,0.10685555,1797.8,1797.6,5.388]
[1745999650178,0.10685555,1797.8,1797.6,5.9571943]
[1745999650599,4.52169149,1797.9,1797.6,5.9571943]
[1745999650796,0.10669398,1797.7,1797.6,5.9571943]
[1745999650979,4.52169149,1797.9,1797.6,5.9571943]
[1745999651170,0.10669398,1797.7,1797.6,5.9571943]
[1745999651499,0.10669398,1797.7,1797.6,7.67482447]
[1745999651670,3.77119149,1797.9,1797.6,7.67482447]
[1745999651872,3.77119149,1797.9,1797.8,0.55]
[1745999656399,3.77119149,1797.9,1797.8,2.26763017]
[1745999657571,3.77119149,1797.9,1797.8,0.55]
[1745999660511,3.77119149,1797.9,1797.8,5.387]
[1745999661207,3.77119149,1797.9,1797.8,7.10463017]
[1745999661370,3.77119149,1797.9,1797.8,7.89184143]
[1745999661712,0.808,1798.2,1797.8,8.65234143]
[1745999662277,0.808,1798.2,1797.8,6.17421126]
[1745999663021,0.808,1798.2,1797.8,1.33721126]
[1745999663313,0.808,1798.2,1797.8,5.387]
[1745999663821,0.808,1798.2,1797.8,7.10463017]
[1745999666712,3.77119149,1798.1,1797.8,7.10463017]
[1745999666911,0.7929,1798.0,1797.6,1.71763017]
[1745999667117,0.7929,1798.0,1797.7,0.55]
[1745999670300,3.77119149,1797.9,1797.7,0.55]
[1745999670504,3.77119149,1797.9,1797.7,1.26046302]
[1745999670819,3.77119149,1797.9,1797.7,2.05636302]
[1745999671019,3.77119149,1797.9,1797.7,1.26046302]
[1745999674022,3.77119149,1797.9,1797.7,6.09746302]
[1745999677323,3.77119149,1797.9,1797.7,1.26046302]
[1745999677525,3.77119149,1797.9,1797.7,5.36]
[1745999681249,0.7778,1798.2,1797.7,5.36]
[1745999681416,0.82714208,1798.1,1797.7,5.36]
[1745999682440,0.7778,1798.2,1797.7,5.36]
[1745999682441,0.82714208,1798.0,1797.7,5.36]
[1745999682647,0.31018282,1798.0,1797.7,5.36]
[1745999682823,0.31018282,1798.0,1797.9,0.55]
[1745999683852,0.82717871,1798.0,1797.9,0.55]
[1745999685554,0.31018282,1798.0,1797.9,0.55]
[1745999687616,0.7778,1798.2,1797.9,0.55]
[1745999687812,0.7736,1798.4,1797.9,0.55]
[1745999688119,0.7736,1798.4,1797.9,1.39619486]
[1745999688718,0.82726794,1798.3,1797.9,1.39619486]
[1745999689452,0.82726794,1798.2,1797.9,1.39619486]
[1745999689748,0.82726794,1798.2,1798.0,1.71763017]
[1745999690126,0.31022535,1798.2,1798.0,1.71763017]
[1745999690323,0.8112,1798.6,1798.1,1.3268]
[1745999690546,0.5168983,1798.5,1798.1,1.3268]
[1745999691058,0.82703992,1798.4,1798.1,1.3268]
[1745999691618,0.31014162,1798.4,1798.3,0.55]
[1745999692834,4.52350522,1798.8,1798.3,0.55]
[1745999693225,4.52350522,1798.8,1798.2,1.71763017]
[1745999693226,4.52350522,1798.8,1798.5,0.55]
[1745999693563,0.82614923,1798.7,1798.5,0.55]
[1745999693926,0.51634355,1798.6,1798.5,0.55]
[1745999694434,4.52350522,1798.8,1798.5,0.55]
[1745999694634,5.02585574,1798.8,1798.4,4.809]
[1745999694960,0.51613701,1798.7,1798.4,4.809]
[1745999695669,5.02585574,1798.8,1798.4,4.809]
[1745999695961,4.52350522,1798.8,1798.5,0.55]
[1745999696845,0.30951566,1798.7,1798.5,0.55]
[1745999697524,0.8077,1798.8,1798.5,0.55]
[1745999698357,0.5,1798.9,1798.5,2.26763017]
[1745999699254,0.30929568,1798.8,1798.5,2.26763017]
[1745999699862,0.5,1798.9,1798.5,2.26763017]
[1745999700041,0.8215,1798.8,1798.5,0.55]
[1745999701424,0.10809342,1798.7,1798.5,0.55]
[1745999702865,0.10809342,1798.7,1798.5,3.03103017]
[1745999703255,0.5,1798.9,1798.5,3.03103017]
[1745999703457,0.5,1798.9,1798.6,0.30310302]
[1745999704037,0.5,1798.9,1798.7,0.55]
[1745999704933,6.05901431,1798.9,1798.7,0.55]
[1745999705137,0.5,1798.9,1798.7,0.55]
[1745999707968,0.1145572,1798.8,1798.7,0.55]
[1745999708169,0.5,1798.9,1798.7,0.55]
[1745999708371,0.1145572,1798.8,1798.7,0.55]
[1745999708565,0.5,1798.9,1798.7,0.55]
[1745999708769,0.10644854,1798.8,1798.7,0.55]
[1745999708970,0.5,1798.9,1798.7,0.55]
[1745999709183,0.10669246,1798.8,1798.7,2.26763017]
[1745999709337,0.5,1798.9,1798.7,2.26763017]
[1745999709540,0.10669246,1798.8,1798.7,2.26763017]
[1745999709764,0.5,1798.9,1798.7,2.26763017]
[1745999710077,0.10669246,1798.8,1798.7,2.26763017]
[1745999710576,0.10725805,1798.8,1798.7,3.01923017]
[1745999710871,0.5,1798.9,1798.7,3.35146349]
[1745999711079,0.5,1798.9,1798.8,4.805]
[1745999715578,0.5,1798.9,1798.8,5.355]
[1745999723469,0.5,1798.9,1798.8,5.76561652]
[1745999725915,0.5,1798.9,1798.8,8.76561652]
[1745999726121,0.5,1798.9,1798.8,9.92232452]
[1745999726924,0.5,1798.9,1798.8,10.72862452]
[1745999728496,0.5,1798.9,1798.8,6.511708]
[1745999731029,0.7798,1799.1,1798.8,6.511708]
[1745999735208,0.7798,1799.1,1799.0,0.55]
[1745999739185,1.08988763,1799.1,1799.0,0.55]
[1745999743355,1.08988763,1799.1,1799.0,1.07093685]
[1745999746204,0.31008763,1799.1,1799.0,1.07093685]
[1745999746613,0.31008763,1799.1,1799.0,1.83019355]
[1745999746820,0.8202,1799.3,1799.0,1.83019355]
[1745999747311,0.8202,1799.3,1799.1,0.52093685]
[1745999747485,0.51725705,1799.2,1799.1,0.52093685]
[1745999747690,0.8276116,1799.2,1799.1,1.07093685]
[1745999748019,0.7776116,1799.2,1799.1,0.52093685]
[1745999748226,0.7776116,1799.2,1799.0,0.7592567]
[1745999748643,0.31035455,1799.1,1799.0,1.3092567]
[1745999749197,0.8202,1799.3,1799.0,1.3092567]
[1745999749521,0.8202,1799.3,1799.1,0.55]
[1745999750437,0.31035465,1799.2,1799.1,0.55]
[1745999750795,0.31035465,1799.2,1799.0,0.7592567]
[1745999751017,0.31035465,1799.2,1799.0,0.55]
[1745999751218,0.793,1799.1,1798.9,4.804]
[1745999751518,0.31035465,1799.0,1798.9,5.354]
[1745999754829,0.31035465,1799.0,1798.9,5.354]
[1745999758793,6.34021543,1799.3,1799.0,0.55]
[1745999759690,0.3101833,1799.2,1799.0,0.55]
[1745999760489,6.05757401,1799.4,1799.0,1.0854]
[1745999760657,6.05757401,1799.4,1799.0,0.55]
[1745999760852,0.51697737,1799.3,1799.0,0.55]
[1745999761067,1.30087737,1799.3,1799.0,0.55]
[1745999761293,0.7839,1799.3,1799.0,0.55]
[1745999761499,6.34162785,1799.3,1799.0,0.55]
[1745999762505,0.31017556,1799.2,1799.0,0.55]
[1745999763205,0.31017556,1799.2,1799.0,1.0854]
[1745999763411,3.77119149,1799.2,1799.0,1.0854]
[1745999763572,3.77119149,1799.2,1799.0,0.55]
[1745999764089,9.32924303,1799.2,1798.9,4.804]
[1745999764398,0.7826,1799.1,1798.9,4.804]
[1745999764565,1.09271951,1799.1,1798.9,4.804]
[1745999764769,3.77119149,1799.0,1798.9,5.354]
[1745999764968,3.77119149,1799.0,1798.9,4.804]
[1745999765202,4.081311,1799.0,1798.9,4.804]
[1745999765438,4.59813997,1799.0,1798.9,4.804]
[1745999766052,10.15678366,1799.0,1798.9,4.804]
[1745999766260,0.76,1798.9,1797.9,6.80393331]
[1745999766557,6.32725324,1798.5,1798.1,4.8]
[1745999766750,3.77119149,1798.4,1798.1,4.8]
[1745999767726,3.77119149,1798.4,1798.3,0.55]
[1745999770062,3.77119149,1798.4,1798.1,4.8]
[1745999770267,3.77119149,1798.4,1798.2,0.48]
[1745999770456,3.77119149,1798.4,1798.3,0.55]
[1745999773427,3.77119149,1798.4,1798.1,4.8]
[1745999773428,10.15238971,1798.4,1798.1,4.8]
[1745999773747,5.56083442,1798.3,1798.1,4.8]
[1745999776570,6.32843358,1798.2,1798.0,0.55]
[1745999778072,3.77119149,1798.1,1798.0,0.55]
[1745999780771,3.77119149,1798.1,1798.0,2.51603017]
[1745999780951,3.77119149,1798.1,1798.0,2.82263319]
[1745999781636,3.77119149,1798.1,1798.0,3.37263319]
[1745999783877,3.77119149,1798.4,1798.1,0.55]
[1745999784052,3.77119149,1798.4,1798.3,0.55]
[1745999787066,0.7957,1798.7,1798.5,0.55]
[1745999787269,3.77119149,1798.7,1798.5,0.55]
[1745999787643,3.77119149,1798.7,1798.3,1.3681]
[1745999787971,3.77119149,1798.7,1798.3,2.15627302]
[1745999788178,9.33089268,1798.7,1798.3,2.15627302]
[1745999788375,9.33089268,1798.7,1798.3,0.55]
[1745999788557,6.31572834,1798.6,1798.3,0.55]
[1745999788963,0.7558,1798.6,1798.3,0.55]
[1745999792799,4.52699149,1798.6,1798.3,0.55]
[1745999792978,10.0868733,1798.6,1798.3,0.55]
[1745999793301,4.52699149,1798.6,1798.3,0.55]
[1745999793461,4.52699149,1798.6,1798.3,1.0846]
[1745999794516,3.77119149,1798.6,1798.3,1.0846]
[1745999795473,3.77119149,1798.6,1798.3,0.55]
[1745999795677,0.30960395,1798.5,1798.3,0.55]
[1745999796708,9.33107798,1798.6,1798.3,0.55]
[1745999797007,3.77119149,1798.6,1798.3,0.55]
[1745999797875,9.33136149,1798.6,1798.3,0.55]
[1745999798075,0.30959476,1798.5,1798.3,0.55]
[1745999798810,3.77119149,1798.6,1798.3,0.55]
[1745999799779,0.7736,1798.5,1798.2,4.796]
[1745999800480,3.77119149,1798.6,1798.2,5.35649]
[1745999800809,0.30960714,1798.5,1798.3,0.55]
[1745999802298,3.77119149,1798.6,1798.3,0.55]
[1745999804816,3.77119149,1798.6,1798.4,0.7546]
[1745999806815,3.77119149,1798.6,1798.3,1.3183]
[1745999807116,3.77119149,1798.6,1798.3,2.15754202]
[1745999808100,3.77119149,1798.6,1798.3,0.55]
[1745999808705,0.30975618,1798.5,1798.3,0.55]
[1745999808909,0.30975618,1798.5,1798.3,5.34]
[1745999809680,3.77119149,1798.6,1798.3,5.34]
[1745999811430,0.31009646,1798.5,1798.3,6.1136]
[1745999811725,0.31009646,1798.5,1798.4,1.16136]
[1745999813720,3.77119149,1798.6,1798.4,1.16136]
[1745999813921,3.77119149,1798.6,1798.4,0.61136]
[1745999814121,9.33115929,1798.6,1798.3,4.79]
[1745999814324,3.77119149,1798.6,1798.3,4.79]
[1745999815491,9.33107993,1798.6,1798.3,4.79]
[1745999815692,0.82691872,1798.5,1798.3,4.79]
[1745999816204,0.31009209,1798.5,1798.3,4.79]
[1745999816727,9.33108459,1798.6,1798.3,4.79]
[1745999816926,5.56081275,1798.3,1797.8,2.47263017]
[1745999817111,4.28791941,1798.2,1797.9,4.79]
[1745999817627,9.84913216,1798.2,1797.9,4.79]
[1745999817825,5.09011941,1798.2,1797.9,4.79]
[1745999818123,0.30987296,1798.1,1797.9,5.3445]
[1745999818789,4.57339149,1798.2,1797.9,5.3445]
[1745999819818,10.13455354,1798.2,1797.9,5.3445]
[1745999820025,10.13455354,1798.2,1797.9,4.79]
[1745999820225,0.3096931,1798.1,1797.9,4.79]
[1745999820795,4.57339149,1798.2,1797.9,4.79]
[1745999823092,0.7793,1798.0,1797.9,4.79]
[1745999825030,6.34103526,1798.0,1797.9,4.79]
[1745999827231,0.7793,1798.0,1797.9,4.79]
[1745999827836,4.55049149,1798.0,1797.9,4.79]
[1745999833049,10.11222675,1798.0,1797.9,4.79]
[1745999839653,10.42110281,1798.0,1797.9,4.79]
[1745999841131,4.85936755,1798.0,1797.9,4.79]
[1745999841327,3.77119149,1798.0,1797.9,4.79]
[1745999846256,4.08098276,1798.0,1797.9,4.79]
[1745999851855,4.08098276,1798.0,1797.8,4.785]
[1745999852469,3.77119149,1798.0,1797.8,4.785]
[1745999856261,0.30999911,1797.9,1797.8,4.785]
[1745999856562,4.0811906,1797.9,1797.8,4.785]
[1745999856730,4.0811906,1797.9,1797.8,8.28993017]
[1745999857354,3.77119149,1797.9,1797.8,8.28993017]
[1745999857558,3.77119149,1797.9,1797.8,6.5723]
[1745999857733,3.77119149,1797.9,1797.8,5.335]
[1745999858657,3.77119149,1797.9,1797.8,4.785]
[1745999859067,4.59770261,1797.9,1797.8,4.785]
[1745999864990,5.56258547,1797.8,1797.4,0.7784]
[1745999865161,9.33385489,1797.7,1797.6,4.777]
[1745999865363,3.77119149,1797.7,1797.6,4.777]
[1745999865562,4.08113351,1797.7,1797.6,4.777]
[1745999865763,9.64379691,1797.7,1797.6,4.777]
[1745999865964,4.08113351,1797.7,1797.6,4.777]
[1745999868481,4.08113351,1797.7,1797.6,5.8047]
[1745999868863,3.77119149,1797.7,1797.6,5.8047]
[1745999870084,3.77119149,1797.7,1797.6,6.5939]
[1745999872461,3.77119149,1797.7,1797.6,5.327]
[1745999873192,3.77119149,1797.7,1797.6,4.777]
[1745999879464,4.08077688,1797.7,1797.6,4.777]
[1745999880205,3.77119149,1797.7,1797.6,4.777]
[1745999884909,10.47571229,1797.7,1797.6,4.777]
[1745999885108,15.07952166,1797.7,1797.6,4.777]
[1745999885407,5.5634351,1797.5,1797.3,4.778]
[1745999885703,5.5634351,1797.5,1797.2,4.778]
[1745999885704,5.5639014,1797.3,1797.2,4.778]
[1745999885904,5.56421099,1797.2,1797.0,4.778]
[1745999887893,5.56438756,1797.2,1797.0,4.778]
[1745999888093,10.13994454,1797.3,1797.0,4.778]
[1745999888296,3.77119149,1797.3,1797.1,0.55]
[1745999892538,3.77119149,1797.7,1797.3,1.3062]
[1745999892684,3.77119149,1797.7,1797.5,0.55]
[1745999894795,3.77119149,1797.7,1797.5,1.3585]
[1745999895221,3.77119149,1797.7,1797.6,1.71763017]
[1745999897636,3.77119149,1797.7,1797.5,2.14311302]
[1745999897798,3.77119149,1797.7,1797.5,1.3585]
[1745999902837,3.77119149,1797.7,1797.6,5.32]
[1745999908022,9.33385489,1797.7,1797.6,4.77]
[1745999908525,9.64263359,1797.7,1797.6,4.77]
[1745999910256,12.33385489,1797.7,1797.6,4.77]
[1745999910466,14.1987999,1797.7,1797.6,4.77]
[1745999912763,14.50762597,1797.7,1797.6,4.77]
[1745999913361,15.33432597,1797.7,1797.6,4.77]
[1745999915449,5.56303008,1797.6,1797.4,0.55]
[1745999915824,3.77119149,1797.5,1797.4,0.55]
[1745999917559,9.33447382,1797.5,1797.4,0.55]
[1745999917766,10.82422421,1797.5,1797.3,4.77]
[1745999918150,0.806,1797.4,1797.3,5.32]
[1745999919581,9.33447382,1797.5,1797.3,5.32]
[1745999919582,3.77119149,1797.5,1797.3,5.32]
[1745999923234,9.33447536,1797.5,1797.3,5.32]
[1745999924063,9.33447536,1797.5,1797.3,4.77]
[1745999924264,10.90608198,1797.5,1797.3,4.77]
[1745999926268,5.34279811,1797.5,1797.3,4.77]
[1745999926455,3.77119149,1797.5,1797.3,4.77]
[1745999927735,3.77119149,1797.5,1797.3,5.5456]
[1745999930146,9.33449496,1797.5,1797.3,5.5456]
[1745999930347,9.33449496,1797.5,1797.3,4.77]
[1745999931470,3.77119149,1797.5,1797.3,4.77]
[1745999931846,9.3345,1797.5,1797.3,4.77]
[1745999932047,3.77119149,1797.5,1797.3,4.77]
[1745999932879,3.77119149,1797.5,1797.4,0.55]
[1745999933062,4.08052451,1797.5,1797.4,0.55]
[1745999935030,4.59620352,1797.5,1797.4,0.55]
[1745999935234,10.15954363,1797.5,1797.4,0.55]
[1745999935429,4.59620352,1797.5,1797.4,0.55]
[1745999935832,10.15948585,1797.5,1797.3,4.77]
[1745999936035,11.25211178,1797.5,1797.3,4.77]
[1745999936236,10.73643277,1797.5,1797.3,4.77]
[1745999936436,0.30933302,1797.4,1797.3,5.32]
[1745999937238,5.87292487,1797.4,1797.3,5.32]
[1745999937468,0.30933302,1797.4,1797.3,5.32]
[1745999937669,0.82528615,1797.4,1797.3,5.32]
[1745999938341,6.388878,1797.4,1797.3,4.77]
[1745999938752,0.82528615,1797.4,1797.3,4.77]
[1745999939445,4.59647764,1797.4,1797.3,4.77]
[1745999940338,4.59647764,1797.4,1797.3,5.32]
[1745999940572,4.08052451,1797.4,1797.3,5.32]
[1745999940875,3.77119149,1797.4,1797.3,5.32]
[1745999941985,3.77119149,1797.4,1797.3,6.0752]
[1745999942275,3.77119149,1797.4,1797.3,6.6072]
[1745999943196,3.77119149,1797.4,1797.3,8.32483017]
[1745999944684,3.77119149,1797.6,1797.5,0.55]
[1745999944994,3.77119149,1797.6,1797.5,3.09363017]
[1745999945179,3.77119149,1797.6,1797.5,3.40299319]
[1745999948303,3.77119149,1797.9,1797.5,3.40299319]
[1745999948505,3.77119149,1797.9,1797.8,0.55]
[1745999948717,3.77119149,1797.9,1797.8,5.312]
[1745999955412,3.0,1798.4,1797.9,0.7714]
[1745999955413,3.77119149,1798.2,1797.9,0.7714]
[1745999955589,3.77119149,1798.2,1798.0,2.26763017]
[1745999963752,3.77119149,1798.5,1798.2,0.55]
[1745999963955,3.77119149,1798.5,1798.4,0.55]
[1745999964239,3.77119149,1798.5,1798.4,6.08396302]
[1745999970349,3.77119149,1798.8,1798.4,6.08396302]
[1745999970639,3.77119149,1798.8,1798.5,1.71763017]
[1745999974549,3.77119149,1798.8,1798.5,2.47093017]
[1745999975748,3.77119149,1798.8,1798.7,0.55]
[1745999976251,3.77119149,1798.8,1798.6,4.751]
[1745999976482,6.38229398,1798.5,1798.3,4.751]
[1745999976687,10.15348547,1798.5,1798.3,4.751]
[1745999976888,4.59309149,1798.5,1798.3,4.751]
[1745999978859,4.59309149,1798.5,1798.3,6.46863017]
[1745999979193,3.77119149,1798.5,1798.3,6.46863017]
[1745999979691,3.77119149,1798.5,1798.3,7.17049319]
[1745999980396,5.56004498,1798.6,1798.3,6.46863017]
[1745999980691,0.8042,1798.6,1798.3,4.751]
[1745999980864,6.36469822,1798.4,1798.3,4.751]
[1745999981070,1.99668873,1798.4,1798.3,4.751]
[1745999981266,0.8042,1798.4,1798.3,4.751]
[1745999983295,6.36318155,1798.6,1798.3,4.751]
[1745999983490,5.56021441,1798.5,1798.3,4.751]
[1745999984220,5.56049822,1798.4,1798.2,2.26763017]
[1745999984379,5.56049822,1798.4,1798.2,0.55]
[1745999985414,5.56031984,1798.5,1798.2,0.55]
[1745999985580,6.19666182,1798.5,1798.2,0.55]
[1745999985917,5.56051009,1798.4,1798.2,0.55]
[1745999988183,5.56051009,1798.4,1798.1,0.55]
[1745999990822,6.35341009,1798.4,1798.1,0.55]
[1745999991655,0.7929,1798.4,1798.1,0.55]
[1745999991951,0.7929,1798.4,1798.1,1.25196302]
[1745999992450,0.7929,1798.4,1798.2,4.744]
[1745999993746,6.3534071,1798.4,1798.2,4.744]
[1745999995049,0.7929,1798.4,1798.2,4.744]
[1745999995250,5.56039003,1798.5,1798.2,6.46163017]
[1745999996346,6.35605194,1798.6,1798.2,6.46163017]
[1745999996856,6.35605194,1798.6,1798.3,0.55]
[1745999997146,0.30928335,1798.5,1798.3,0.55]
[1745999998253,6.35605194,1798.6,1798.3,0.55]
[1745999998847,5.56019215,1798.5,1798.3,0.55]
[1745999999088,11.91621257,1798.6,1798.3,0.55]
[1745999999475,11.91620947,1798.6,1798.3,0.55]
[1746000000188,5.56021418,1798.5,1798.3,0.55]
[1746000000364,5.56049822,1798.4,1798.3,0.55]
[1746000000558,5.8694716,1798.5,1798.3,0.55]